bitfinex-derivatives/quotes_ETHF0:USTF0_20210109
["timestamp","ask_amount","ask_price","bid_price","bid_amount"]
[1610172721926,4.00959,1189.9,1189.8,4.00959]
[1610172722126,4.00959,1189.9,1189.8,54.00959]
[1610172722526,21.624505,1190.4,1189.8,12.67169]
[1610172722726,21.624505,1190.4,1189.8,54.00959]
[1610172722926,21.6320286,1190.5,1189.9,56.9546]
[1610172723126,21.6320286,1190.5,1189.9,136.9546]
[1610172723326,21.73417199,1190.7,1190.0,50.0]
[1610172723327,21.64912905,1190.7,1190.0,50.0]
[1610172723527,21.67128634,1190.8,1190.0,80.0]
[1610172723727,21.67128634,1190.8,1190.1,50.0]
[1610172723927,25.07828101,1190.9,1190.6,4.00959]
[1610172724327,3.405,1190.9,1190.7,50.0]
[1610172724727,3.405,1190.9,1190.8,50.0]
[1610172724929,3.405,1190.9,1190.8,39.0576]
[1610172725328,3.405,1190.9,1190.8,80.0]
[1610172725930,3.405,1190.9,1190.8,84.00959]
[1610172726729,3.405,1190.9,1190.8,54.00959]
[1610172729333,3.405,1190.9,1190.8,62.45609]
[1610172734739,3.405,1190.9,1190.8,84.00959]
[1610172736241,6.811,1191.5,1190.8,84.00959]
[1610172736441,6.811,1191.5,1191.2,47.9674]
[1610172736641,6.811,1191.5,1191.3,30.0]
[1610172737041,6.811,1191.5,1191.3,50.0]
[1610172737241,6.811,1191.5,1191.4,50.0]
[1610172737441,6.811,1191.5,1191.3,50.0]
[1610172737843,6.811,1191.5,1191.4,50.0]
[1610172738041,6.811,1191.5,1191.4,4.00959]
[1610172738443,6.811,1191.5,1191.4,54.00959]
[1610172738642,6.811,1191.5,1191.4,50.0]
[1610172739243,28.49867648,1191.5,1191.4,50.0]
[1610172740045,28.49867648,1191.5,1190.9,1.593]
[1610172740046,32.50826648,1191.5,1191.3,50.0]
[1610172740245,21.67560771,1191.4,1191.2,50.0]
[1610172740645,21.67560771,1191.4,1191.3,50.0]
[1610172740847,10.28043983,1191.4,1191.0,50.0]
[1610172741046,10.28043983,1191.4,1190.9,50.0]
[1610172741245,10.28043983,1191.4,1190.8,52.6714]
[1610172741448,21.68531778,1191.4,1191.1,50.0]
[1610172741847,21.68531778,1191.4,1190.8,52.6714]
[1610172742047,21.68531778,1191.4,1191.3,4.00959]
[1610172742247,28.50907523,1191.5,1191.3,4.00959]
[1610172742647,28.50907523,1191.5,1191.4,50.0]
[1610172742847,15.77922375,1191.5,1191.0,50.0]
[1610172743048,17.10225121,1191.5,1191.0,50.0]
[1610172743248,17.10225121,1191.5,1191.4,50.0]
[1610172743448,15.77922375,1191.5,1191.1,50.0]
[1610172743850,15.77922375,1191.5,1191.4,50.0]
[1610172744050,19.78881375,1191.5,1191.4,50.0]
[1610172744253,21.69508768,1191.3,1191.2,50.0]
[1610172744450,21.69508768,1191.3,1191.0,66.06359]
[1610172744749,21.69508768,1191.3,1191.1,50.0]
[1610172744950,21.69508768,1191.3,1191.2,50.0]
[1610172745352,21.69508768,1191.3,1191.1,50.0]
[1610172745553,21.72043381,1191.4,1191.1,50.0]
[1610172745750,19.79684087,1191.5,1191.2,50.0]
[1610172745950,32.545221,1191.5,1191.4,4.00959]
[1610172746550,32.545221,1191.5,1191.4,54.00959]
[1610172747051,32.545221,1191.5,1191.4,50.0]
[1610172747252,41.535186,1191.5,1191.4,50.0]
[1610172747755,19.810555,1191.5,1191.4,50.0]
[1610172747954,41.56511616,1191.5,1191.4,50.0]
[1610172748554,23.75523848,1191.5,1191.4,50.0]
[1610172748854,21.14064898,1191.5,1191.4,50.0]
[1610172749256,12.15068398,1191.5,1191.4,50.0]
[1610172749455,8.14109398,1191.5,1191.4,50.0]
[1610172749655,21.741644,1191.5,1191.4,50.0]
[1610172749857,37.56863529,1191.5,1191.4,50.0]
[1610172750056,41.57822529,1191.5,1191.4,54.00959]
[1610172750256,28.57456139,1191.5,1191.4,54.00959]
[1610172750556,6.811,1191.5,1191.4,54.00959]
[1610172754659,3.405,1191.6,1191.4,54.00959]
[1610172754858,3.405,1191.6,1191.5,114.2958]
[1610172755157,3.405,1191.6,1191.5,146.7171]
[1610172757660,3.405,1191.6,1191.5,116.7171]
[1610172760664,3.405,1191.6,1191.5,146.7171]
[1610172761669,3.405,1191.6,1191.5,116.7171]
[1610172762469,3.405,1191.6,1191.5,146.7171]
[1610172762869,3.405,1191.6,1191.5,116.7171]
[1610172764870,3.405,1191.6,1191.5,146.7171]
[1610172765070,44.75586435,1192.3,1191.5,146.7171]
[1610172765273,23.0,1192.3,1191.6,50.0]
[1610172765472,23.0,1192.3,1192.0,55.0797]
[1610172765672,23.0,1192.3,1192.0,56.6952]
[1610172766074,23.0,1192.3,1192.1,50.0]
[1610172766272,23.0,1192.3,1192.2,54.00959]
[1610172769977,23.0,1192.3,1192.2,84.00959]
[1610172771578,23.0,1192.3,1192.2,54.00959]
[1610172771779,23.0,1192.3,1192.2,84.00959]
[1610172773782,15.1591,1192.3,1192.2,84.00959]
[1610172774782,15.1591,1192.3,1192.2,54.00959]
[1610172776283,15.1591,1192.3,1192.2,84.00959]
[1610172777285,15.1591,1192.3,1192.2,54.00959]
[1610172779491,15.1591,1192.3,1192.2,84.00959]
[1610172780091,7.9554,1192.3,1192.2,84.00959]
[1610172780491,7.9554,1192.3,1192.2,54.00959]
[1610172781291,7.9554,1192.3,1192.2,84.00959]
[1610172781892,0.0522,1192.3,1192.2,84.00959]
[1610172782293,0.0522,1192.3,1192.2,84.26573357]
[1610172782694,3.405,1193.3,1192.9,54.5988]
[1610172782895,3.405,1193.3,1192.9,2.5563]
[1610172783294,3.405,1193.3,1193.2,54.8817]
[1610172783495,30.75652485,1193.8,1193.4,59.303]
[1610172783695,21.76468736,1193.8,1193.0,80.0]
[1610172783895,21.76468736,1193.8,1193.1,50.0]
[1610172784096,30.78713476,1193.9,1193.2,30.0]
[1610172784297,30.78713476,1193.9,1193.8,65.60039]
[1610172784499,30.78010722,1194.1,1193.8,65.60039]
[1610172784698,30.78010722,1194.1,1193.8,115.60039]
[1610172784900,30.79134873,1194.2,1193.9,50.0]
[1610172785100,18.52284254,1194.2,1193.9,50.0]
[1610172785300,30.80059072,1194.3,1193.9,50.0]
[1610172785500,30.80059072,1194.3,1194.0,50.0]
[1610172785700,30.80059072,1194.3,1193.8,65.60039]
[1610172785900,30.81352508,1194.4,1194.1,50.0]
[1610172786100,30.81352508,1194.4,1194.2,7.7527]
[1610172786300,30.81352508,1194.4,1194.3,4.00959]
[1610172786702,30.81352508,1194.4,1194.3,54.00959]
[1610172787303,9.01773784,1194.4,1194.3,54.00959]
[1610172787703,11.02550482,1194.4,1194.3,54.00959]
[1610172788904,1.37541418,1194.5,1194.3,54.00959]
[1610172789104,1.37541418,1194.5,1194.4,50.0]
[1610172789504,14.41653345,1194.5,1194.4,50.0]
[1610172790306,1.37541418,1194.5,1194.4,54.00959]
[1610172790907,11.04838456,1194.5,1194.4,120.08219]
[1610172791207,12.42807355,1194.5,1194.4,120.08219]
[1610172791607,9.04340066,1194.5,1194.4,120.08219]
[1610172792009,30.90448355,1194.5,1194.4,54.00959]
[1610172792809,11.0519294,1194.6,1194.4,54.00959]
[1610172793009,11.0519294,1194.6,1194.5,50.0]
[1610172793209,13.0595452,1194.8,1194.5,50.0]
[1610172793410,13.0595452,1194.8,1194.6,50.0]
[1610172793908,13.0595452,1194.8,1194.5,50.0]
[1610172794109,13.05389079,1194.7,1194.6,50.0]
[1610172794311,13.05389079,1194.7,1194.6,54.00959]
[1610172794509,14.43305767,1194.7,1194.6,4.00959]
[1610172794711,13.05547795,1194.8,1194.6,54.00959]
[1610172795109,13.05547795,1194.8,1194.7,50.0]
[1610172795510,1.37939311,1194.9,1194.7,50.0]
[1610172795908,1.37939311,1194.9,1194.1,54.5903]
[1610172795909,1.37886113,1194.8,1194.1,54.5903]
[1610172796109,2.1345,1194.8,1194.1,54.5903]
[1610172796309,2.1345,1194.8,1194.7,54.00959]
[1610172796511,3.51316777,1194.8,1194.7,4.00959]
[1610172796710,3.51316777,1194.8,1194.7,54.00959]
[1610172797311,3.51316777,1194.8,1194.7,50.0]
[1610172797711,18.56521599,1194.8,1194.7,50.0]
[1610172798511,21.19613822,1194.8,1194.7,50.0]
[1610172798711,22.57474118,1194.8,1194.7,50.0]
[1610172799511,28.40293713,1194.8,1194.7,50.0]
[1610172800613,13.35088891,1194.8,1194.6,50.0]
[1610172800812,16.05103195,1194.8,1194.5,50.0]
[1610172801214,1.38088325,1194.7,1194.4,50.0]
[1610172801616,18.46897042,1194.7,1194.0,50.0]
[1610172801913,13.06395526,1194.1,1193.7,54.2572]
[1610172802313,11.05918147,1193.9,1193.8,50.0]
[1610172802515,15.06877147,1193.9,1193.8,54.00959]
[1610172802713,15.06877147,1193.9,1193.8,4.00959]
[1610172802913,15.06877147,1193.9,1193.8,50.0]
[1610172803114,5.39147502,1193.9,1193.8,50.0]
[1610172804016,1.38188502,1193.9,1193.8,50.0]
[1610172804415,1.38188502,1193.9,1193.8,54.00959]
[1610172804416,11.08896698,1193.9,1193.8,54.00959]
[1610172804616,4.083329,1193.9,1193.8,54.00959]
[1610172804816,31.02321807,1193.9,1193.8,54.00959]
[1610172805018,11.09349749,1193.9,1193.8,54.00959]
[1610172805217,11.09349749,1193.9,1193.8,50.0]
[1610172805817,14.48751703,1194.0,1193.8,50.0]
[1610172806017,1.38375545,1193.9,1193.8,50.0]
[1610172806217,1.38375545,1193.9,1193.3,49.5966]
[1610172806418,11.08685212,1193.7,1193.6,4.00959]
[1610172807421,31.00264474,1193.7,1193.6,4.00959]
[1610172807623,31.00264474,1193.7,1193.6,54.00959]
[1610172807823,11.08820622,1193.8,1193.6,54.00959]
[1610172808022,11.08738995,1193.7,1193.6,54.00959]
[1610172808222,11.08738995,1193.7,1193.6,4.00959]
[1610172808422,15.09697995,1193.7,1193.6,54.00959]
[1610172808623,11.08738995,1193.7,1193.6,54.00959]
[1610172809023,31.00507587,1193.7,1193.6,54.00959]
[1610172809425,31.01282878,1193.8,1193.6,54.00959]
[1610172809623,3.32604274,1193.8,1193.6,54.00959]
[1610172809824,27.69475433,1193.9,1193.7,50.0]
[1610172809825,31.02175431,1193.9,1193.7,50.0]
[1610172810227,31.02175431,1193.9,1193.8,50.0]
[1610172810425,15.101907,1193.9,1193.8,54.00959]
[1610172810627,4.00959,1193.9,1193.8,4.00959]
[1610172810826,4.00959,1193.9,1193.8,50.0]
[1610172811025,5.39301144,1193.9,1193.8,50.0]
[1610172811426,1.38342144,1193.9,1193.8,50.0]
[1610172811827,1.38342144,1193.9,1193.8,99.0412]
[1610172811828,12.47444544,1193.9,1193.8,99.0412]
[1610172812025,31.01951728,1193.9,1193.8,99.0412]
[1610172812425,31.01951728,1193.9,1193.8,103.05079]
[1610172813529,31.01951728,1193.9,1193.8,54.00959]
[1610172814430,35.02910728,1193.9,1193.8,54.00959]
[1610172814930,16.48347242,1193.9,1193.8,50.0]
[1610172815232,8.09706156,1193.9,1193.8,50.0]
[1610172815631,5.39327801,1193.9,1193.8,50.0]
[1610172816935,18.48700516,1193.9,1193.8,50.0]
[1610172818434,18.48700516,1193.9,1193.5,50.0]
[1610172818634,20.23360516,1193.9,1193.3,50.0]
[1610172818835,13.09170976,1193.7,1193.3,50.0]
[1610172819034,13.09170976,1193.7,1193.0,50.0]
[1610172819234,13.0860635,1193.6,1193.1,50.0]
[1610172819434,15.3944635,1193.6,1192.8,68.4097]
[1610172819636,30.94984588,1193.1,1192.9,50.0]
[1610172820035,30.94205335,1193.0,1192.9,50.0]
[1610172820235,24.04872296,1193.0,1192.1,60.3299]
[1610172820435,4.00959,1192.3,1192.1,64.33949]
[1610172820636,4.00959,1192.3,1192.2,50.0]
[1610172822640,4.00959,1192.3,1192.1,50.0]
[1610172822839,34.87372432,1192.3,1192.1,50.0]
[1610172823039,34.87372432,1192.3,1191.8,50.0]
[1610172823242,21.82470294,1192.2,1191.8,50.0]
[1610172823440,24.09330294,1192.2,1191.9,50.0]
[1610172823641,21.84390951,1192.1,1191.9,50.0]
[1610172823840,21.84390951,1192.1,1191.1,50.0]
[1610172824040,30.86982472,1192.1,1191.8,50.0]
[1610172824441,4.00959,1191.9,1191.2,4.00959]
[1610172824640,4.00959,1191.9,1191.7,50.0]
[1610172825041,4.00959,1191.9,1191.1,50.0]
[1610172825241,6.43949,1191.9,1191.3,50.0]
[1610172825441,28.26997907,1191.9,1191.3,50.0]
[1610172825641,28.26997907,1191.9,1191.1,50.0]
[1610172825843,23.98703549,1191.9,1191.4,50.0]
[1610172826042,23.98703549,1191.9,1191.0,69.6927]
[1610172826241,37.2894608,1191.9,1191.5,50.0]
[1610172826441,4.00959,1191.6,1191.5,54.00959]
[1610172826641,2.4299,1191.9,1191.5,4.00959]
[1610172826844,21.83221954,1192.0,1191.6,50.0]
[1610172827242,21.83221954,1192.0,1191.7,50.0]
[1610172827442,21.83221954,1192.0,1191.5,4.00959]
[1610172827443,33.11400522,1192.2,1191.6,50.0]
[1610172827744,2.2686,1192.2,1191.6,50.0]
[1610172827942,30.84582157,1192.3,1191.7,50.0]
[1610172828143,21.81867478,1192.4,1191.7,50.0]
[1610172828345,21.81867478,1192.4,1191.6,50.0]
[1610172828543,32.7810393,1192.5,1192.2,4.00959]
[1610172828945,32.7810393,1192.5,1192.3,50.0]
[1610172829144,30.83524129,1192.7,1192.3,50.0]
[1610172829344,30.83524129,1192.7,1192.4,50.0]
[1610172829543,30.83607085,1192.8,1192.4,50.0]
[1610172829744,21.81906101,1192.8,1192.3,50.0]
[1610172829943,21.81906101,1192.8,1192.5,50.0]
[1610172830144,30.84932837,1192.9,1192.5,50.0]
[1610172830344,30.85137076,1193.0,1192.6,50.0]
[1610172830543,34.86096076,1193.0,1192.9,4.00959]
[1610172830744,21.82988696,1193.0,1192.9,4.00959]
[1610172830944,21.82988696,1193.0,1192.9,54.00959]
[1610172831147,30.87471661,1193.2,1192.9,54.00959]
[1610172831346,30.88630975,1193.3,1193.0,50.0]
[1610172831744,30.88630975,1193.3,1193.1,50.0]
[1610172831946,21.85783175,1193.2,1193.0,50.0]
[1610172832346,30.88871205,1193.2,1193.1,50.0]
[1610172832545,34.89830205,1193.2,1193.0,50.0]
[1610172832946,34.89830205,1193.2,1193.1,50.0]
[1610172833146,34.89830205,1193.2,1192.9,4.00959]
[1610172833346,34.89830205,1193.2,1193.0,50.0]
[1610172833749,34.89830205,1193.2,1192.9,4.00959]
[1610172833750,34.89830205,1193.2,1193.1,50.0]
[1610172834147,34.89830205,1193.2,1193.0,50.0]
[1610172834346,34.89830205,1193.2,1193.1,50.0]
[1610172834547,34.89830205,1193.2,1193.1,54.00959]
[1610172834746,34.89830205,1193.2,1193.1,50.0]
[1610172834948,34.89830205,1193.2,1193.0,50.0]
[1610172835149,21.8343161,1193.1,1192.7,62.4851]
[1610172835350,21.8343161,1193.1,1192.5,2.1381]
[1610172835550,21.8343161,1193.1,1192.8,50.0]
[1610172835551,30.85697432,1193.1,1192.8,50.0]
[1610172835750,30.84715512,1193.0,1191.9,70.2726]
[1610172835950,30.84715512,1193.0,1192.3,50.0]
[1610172836152,30.83820543,1192.9,1192.3,50.0]
[1610172836350,18.16139526,1192.8,1192.0,50.0]
[1610172836551,4.00959,1192.5,1192.3,4.00959]
[1610172836752,4.00959,1192.5,1192.4,50.0]
[1610172836951,4.00959,1192.5,1192.1,50.0]
[1610172837353,4.00959,1192.5,1191.9,70.2726]
[1610172837354,4.00959,1192.5,1192.4,50.0]
[1610172837551,4.00959,1192.5,1192.2,50.0]
[1610172837952,4.00959,1192.5,1192.0,50.0]
[1610172838153,21.77663509,1192.4,1192.0,50.0]
[1610172838552,4.00959,1192.1,1191.6,57.96259]
[1610172838953,4.00959,1192.1,1191.7,50.0]
[1610172839353,4.00959,1192.1,1191.6,57.96259]
[1610172839553,4.00959,1192.1,1191.8,50.0]
[1610172839753,4.00959,1192.1,1191.7,50.0]
[1610172840153,4.00959,1192.1,1191.9,50.0]
[1610172840554,4.00959,1192.1,1192.0,4.00959]
[1610172840755,4.00959,1192.1,1192.0,54.00959]
[1610172840954,21.75994373,1192.4,1192.0,54.00959]
[1610172841160,21.77020257,1192.5,1192.0,54.00959]
[1610172841554,21.77020257,1192.5,1192.1,50.0]
[1610172841754,30.77145299,1192.6,1192.2,50.0]
[1610172842154,30.77145299,1192.6,1192.1,50.0]
[1610172842354,30.77145299,1192.6,1192.3,50.0]
[1610172842554,30.77145299,1192.6,1192.4,4.00959]
[1610172842955,1.39234458,1192.7,1192.4,4.00959]
[1610172842956,21.78945191,1192.7,1192.4,63.14999]
[1610172843156,30.81272564,1192.9,1192.5,50.0]
[1610172843455,30.81272564,1192.9,1192.6,50.0]
[1610172843858,21.80254235,1192.9,1192.5,50.0]
[1610172844257,30.82263941,1193.0,1192.7,50.0]
[1610172844457,30.82263941,1193.0,1192.6,104.0832]
[1610172844657,30.82263941,1193.0,1192.9,4.00959]
[1610172844857,21.81094969,1193.0,1192.9,54.00959]
[1610172845158,21.82284839,1193.1,1192.9,50.0]
[1610172845458,30.83814671,1193.1,1193.0,50.0]
[1610172846259,10.40949032,1193.1,1193.0,50.0]
[1610172846562,1.394192,1193.1,1193.0,50.0]
[1610172846958,12.40899722,1193.1,1193.0,50.0]
[1610172847761,1.394192,1193.1,1193.0,50.0]
[1610172852969,14.41357541,1193.1,1193.0,50.0]
[1610172853570,14.41357541,1193.1,1192.7,50.0]
[1610172853770,1.394192,1193.1,1192.2,58.4732]
[1610172853972,10.99532166,1192.8,1192.2,58.4732]
[1610172854174,10.99532166,1192.8,1192.7,50.0]
[1610172854372,10.99532166,1192.8,1192.3,50.0]
[1610172854573,14.67026276,1193.0,1192.3,50.0]
[1610172854772,4.00959,1192.4,1192.2,62.48279]
[1610172854972,4.00959,1192.4,1192.3,50.0]
[1610172858983,25.78597537,1192.4,1192.3,50.0]
[1610172859385,34.78404205,1192.4,1192.3,50.0]
[1610172859583,14.39774583,1192.4,1192.3,50.0]
[1610172859785,14.39774583,1192.4,1192.2,50.0]
[1610172859984,19.10346952,1192.4,1191.9,50.0]
[1610172860283,8.99561806,1192.3,1191.9,50.0]
[1610172860483,8.99561806,1192.3,1192.0,50.0]
[1610172860683,4.00959,1192.1,1191.9,50.0]
[1610172861084,4.00959,1192.1,1191.3,109.8685]
[1610172861485,34.76975165,1192.1,1191.8,50.0]
[1610172861686,21.75489254,1191.9,1191.4,50.0]
[1610172862085,21.75489254,1191.9,1191.5,50.0]
[1610172862587,21.75489254,1191.9,1191.4,50.0]
[1610172862790,21.75489254,1191.9,1191.5,4.00959]
[1610172862988,21.75489254,1191.9,1191.6,50.0]
[1610172863189,30.76472197,1192.0,1191.6,50.0]
[1610172863388,30.76472197,1192.0,1191.5,50.0]
[1610172863590,21.77674903,1191.9,1191.4,50.0]
[1610172863788,21.77674903,1191.9,1191.6,50.0]
[1610172863988,21.77674903,1191.9,1191.4,50.0]
[1610172864290,21.77674903,1191.9,1191.7,50.0]
[1610172864690,30.80071785,1192.1,1191.8,4.00959]
[1610172864891,32.62540166,1192.3,1191.8,54.00959]
[1610172865292,21.81087485,1192.3,1191.9,50.0]
[1610172865692,30.85891143,1192.6,1192.0,50.0]
[1610172865892,28.85476066,1192.6,1192.0,50.0]
[1610172866093,30.86105727,1192.7,1191.9,50.0]
[1610172866492,30.86105727,1192.7,1192.1,50.0]
[1610172866693,4.00959,1192.4,1192.2,4.00959]
[1610172867295,4.00959,1192.4,1192.3,50.0]
[1610172868493,14.393041,1192.4,1192.2,50.0]
[1610172868894,10.37809256,1192.3,1191.8,50.0]
[1610172869094,12.37308143,1192.3,1192.1,50.0]
[1610172869493,12.37308143,1192.3,1191.6,50.0]
[1610172869894,12.37308143,1192.3,1191.5,63.3233]
[1610172869895,21.72688079,1192.0,1191.7,50.0]
[1610172870095,21.72688079,1192.0,1191.6,50.0]
[1610172870295,30.70069924,1192.0,1191.8,50.0]
[1610172870596,30.70069924,1192.0,1191.7,50.0]
[1610172870597,21.70681928,1191.9,1191.7,50.0]
[1610172870798,21.70681928,1191.9,1190.9,52.371]
[1610172870799,4.00959,1191.8,1191.0,50.0]
[1610172870999,25.69364187,1191.8,1191.0,50.0]
[1610172871202,63.7522,1191.3,1190.9,2.4983]
[1610172871405,2.6099,1191.3,1191.2,50.0]
[1610172872000,24.23920406,1191.3,1191.2,50.0]
[1610172872200,24.23920406,1191.3,1189.9,1.7069]
[1610172872404,11.54724438,1191.3,1189.9,1.7069]
[1610172872606,58.4687,1190.6,1190.0,50.0]
[1610172872802,4.00959,1190.1,1190.0,54.00959]
[1610172873000,4.00959,1190.1,1190.0,4.00959]
[1610172873401,4.00959,1190.1,1190.0,54.00959]
[1610172873599,1.9429,1190.8,1190.0,54.00959]
[1610172873802,23.5418342,1190.8,1190.0,54.00959]
[1610172874102,23.5418342,1190.8,1190.1,50.0]
[1610172874301,9.67946179,1190.8,1190.1,50.0]
[1610172874502,1.9429,1190.8,1190.2,50.0]
[1610172874704,4.00959,1190.6,1190.5,4.00959]
[1610172874902,4.00959,1190.6,1190.3,50.0]
[1610172875302,4.00959,1190.6,1190.1,50.0]
[1610172875501,4.00959,1190.6,1190.4,50.0]
[1610172875702,4.00959,1190.6,1189.8,52.0835]
[1610172876002,4.00959,1190.6,1190.5,50.0]
[1610172876202,21.61080737,1191.1,1189.8,2.0835]
[1610172876406,21.61080737,1191.1,1190.6,50.0]
[1610172876604,21.6051426,1191.2,1190.6,50.0]
[1610172876804,21.6051426,1191.2,1191.0,4.00959]
[1610172877004,21.6098171,1191.3,1191.0,4.00959]
[1610172877204,21.6098171,1191.3,1191.1,50.0]
[1610172877404,21.62019753,1191.5,1191.1,50.0]
[1610172877605,21.62019753,1191.5,1191.0,4.00959]
[1610172877803,8.93482693,1191.6,1191.0,4.00959]
[1610172877804,21.62915923,1191.6,1191.0,4.00959]
[1610172878005,21.62915923,1191.6,1191.2,50.0]
[1610172878205,21.62915923,1191.6,1191.0,4.00959]
[1610172878404,21.62915923,1191.6,1191.2,50.0]
[1610172878804,4.00959,1191.3,1190.7,4.00959]
[1610172879205,4.00959,1191.3,1191.2,50.0]
[1610172879606,4.00959,1191.3,1190.7,6.49579]
[1610172879808,4.00959,1191.3,1190.9,50.0]
[1610172880206,4.00959,1191.3,1190.8,50.0]
[1610172880407,21.63356185,1191.6,1190.7,16.44759]
[1610172880608,21.63356185,1191.6,1190.9,50.0]
[1610172880808,4.00959,1191.7,1191.4,4.00959]
[1610172881308,4.00959,1191.7,1191.5,50.0]
[1610172881509,21.65502095,1191.9,1191.5,50.0]
[1610172881708,21.65502095,1191.9,1191.4,4.00959]
[1610172881709,21.65502095,1191.9,1191.6,50.0]
[1610172881908,25.07045754,1192.0,1191.5,50.0]
[1610172882312,3.405,1192.0,1191.7,50.0]
[1610172882512,3.405,1192.0,1191.7,2.2208]
[1610172882711,21.68217623,1192.3,1191.9,4.00959]
[1610172883110,21.68217623,1192.3,1192.0,50.0]
[1610172883310,21.68217623,1192.3,1191.9,4.00959]
[1610172883510,21.68217623,1192.3,1192.1,50.0]
[1610172883511,30.6448033,1192.3,1192.1,50.0]
[1610172883913,30.64111963,1192.2,1192.0,50.0]
[1610172884111,30.64111963,1192.2,1191.4,63.9646]
[1610172884313,30.64111963,1192.2,1192.1,50.0]
[1610172884512,8.96000267,1192.2,1192.1,50.0]
[1610172884712,12.96959267,1192.2,1191.5,50.0]
[1610172884914,14.95748269,1192.2,1191.8,50.0]
[1610172885112,14.95748269,1192.2,1191.6,50.0]
[1610172885113,21.66240058,1191.8,1191.6,50.0]
[1610172885412,21.66240058,1191.8,1191.5,50.0]
[1610172885613,21.65015306,1191.7,1191.5,50.0]
[1610172885812,21.65015306,1191.7,1191.1,50.0]
[1610172886012,21.65015306,1191.7,1191.0,56.0712]
[1610172886013,21.64258906,1191.6,1191.0,56.0712]
[1610172886212,21.64258906,1191.6,1190.7,2.4862]
[1610172886413,21.62462901,1191.5,1191.2,50.0]
[1610172886613,21.62462901,1191.5,1191.1,50.0]
[1610172886812,4.00959,1191.2,1190.8,4.00959]
[1610172887413,4.00959,1191.2,1190.9,50.0]
[1610172887812,4.00959,1191.2,1190.8,4.00959]
[1610172888014,4.00959,1191.2,1191.0,50.0]
[1610172888213,4.00959,1191.2,1190.9,50.0]
[1610172888413,21.60884479,1191.4,1190.8,4.00959]
[1610172888615,21.60884479,1191.4,1191.1,50.0]
[1610172888813,21.60884479,1191.4,1191.3,4.00959]
[1610172889013,21.61186101,1191.5,1191.3,4.00959]
[1610172889414,21.61186101,1191.5,1191.3,54.00959]
[1610172889614,9.46961372,1191.6,1190.6,60.703]
[1610172889814,9.46961372,1191.6,1191.4,50.0]
[1610172890216,21.60361568,1191.5,1190.6,60.703]
[1610172890414,21.60361568,1191.5,1191.1,50.0]
[1610172890814,4.00959,1191.2,1190.8,4.00959]
[1610172891014,4.00959,1191.2,1190.8,50.0]
[1610172891414,4.00959,1191.2,1190.7,50.0]
[1610172891615,4.00959,1191.2,1190.9,50.0]
[1610172892017,4.00959,1191.2,1190.2,1.5818]
[1610172892018,4.00959,1191.2,1190.8,50.0]
[1610172892215,25.55282611,1191.2,1190.3,102.2041]
[1610172892617,21.53433291,1191.1,1190.9,50.0]
[1610172892817,4.00959,1191.0,1190.4,54.00959]
[1610172893218,4.00959,1191.0,1190.5,50.0]
[1610172893418,4.00959,1191.0,1190.6,50.0]
[1610172893817,4.00959,1191.0,1190.5,50.0]
[1610172894017,4.00959,1191.0,1190.7,50.0]
[1610172894417,4.00959,1191.0,1190.6,50.0]
[1610172894619,4.00959,1191.0,1190.4,4.00959]
[1610172894620,4.00959,1191.0,1190.8,50.0]
[1610172894817,4.00959,1191.0,1190.9,4.00959]
[1610172895425,4.00959,1191.0,1190.9,50.0]
[1610172898227,14.61251229,1191.3,1190.9,50.0]
[1610172898427,21.54941515,1191.5,1190.9,50.0]
[1610172898630,23.94542571,1191.6,1191.0,50.0]
[1610172898828,4.00959,1191.1,1191.0,54.00959]
[1610172899028,4.00959,1191.1,1191.0,4.00959]
[1610172899228,4.00959,1191.1,1191.0,54.00959]
[1610172899428,4.00959,1191.1,1191.0,50.0]
[1610172900431,21.54325114,1191.5,1191.0,50.0]
[1610172900832,4.00959,1191.2,1191.1,50.0]
[1610172901232,4.00959,1191.2,1191.0,4.00959]
[1610172901431,4.00959,1191.2,1191.1,50.0]
[1610172902032,21.54949776,1191.4,1190.8,50.0]
[1610172902634,21.57777162,1191.5,1190.8,50.0]
[1610172902834,21.57777162,1191.5,1191.1,54.00959]
[1610172903138,21.57777162,1191.5,1191.2,50.0]
[1610172903534,23.98728409,1191.6,1191.3,50.0]
[1610172904036,23.98728409,1191.6,1191.2,50.0]
[1610172904334,23.98728409,1191.6,1191.4,50.0]
[1610172904834,4.00959,1191.5,1191.3,50.0]
[1610172905435,4.00959,1191.5,1191.1,4.00959]
[1610172905637,4.00959,1191.5,1191.4,50.0]
[1610172906036,21.61814001,1191.8,1191.4,51.1079]
[1610172906234,21.61814001,1191.8,1191.4,131.1079]
[1610172906436,25.03103816,1191.9,1191.4,131.1079]
[1610172906635,25.03103816,1191.9,1191.5,50.0]
[1610172906836,3.405,1191.9,1191.8,4.00959]
[1610172907236,3.405,1191.9,1191.8,54.00959]
[1610172907636,3.405,1191.9,1191.8,122.10469]
[1610172908036,3.405,1191.9,1191.8,152.10469]
[1610172908437,25.07590585,1192.6,1191.8,152.10469]
[1610172908640,3.405,1192.6,1191.9,50.0]
[1610172908838,3.405,1192.6,1192.5,4.00959]
[1610172909238,3.405,1192.6,1192.5,34.00959]
[1610172909438,3.405,1192.6,1192.5,84.00959]
[1610172909839,28.51293165,1192.9,1192.5,84.00959]
[1610172909840,6.811,1192.9,1192.7,51.7381]
[1610172910339,43.72022513,1193.1,1192.7,51.7381]